Cogmind - Beta 16.1 @@@ ROGUE MODE // 2026.02.22 @ 13:22:34 // Winter2019/RPGLIKE Player: badjay Result: Destroyed by Y-54 Guardian with Gatling Laser Performance ------------- Evolutions (4) 2000 Regions Visited (5) 1000 Robots Destroyed (47) 235 Value Destroyed (1473) 1473 Prototype IDs (44) 880 Alien Tech Used (0) 0 Bonus (825) 825 TOTAL SCORE: 6413 Bonus ------- High Alert Combat Kills 25 Registered with UFD 300 Met Optimus in HQ 500 Cogmind --------- Core Integrity 0/600 Matter 295/300 Energy 160/160 System Corruption 2% Temperature Cool (6) Movement Flying (112) Ox1 Location -6/Factory Parts ------- > --- POWER (1) -------- Light Fission Core > --- PROPULSION (4) --- Cesium-ion Thruster Xenon Bombardment Thruster Nuclear Pulse Thruster > --- UTILITY (5) ------ Experimental Terrain Scanner Expert System (Blank) Improved Actuator Array Phase Shifter A0-MCA's Component Scanner > --- WEAPON (2) ------- Power Sword Power Sword > --- INVENTORY (1) ---- Power Sword Peak State ------------ > --- POWER ------------ Light Fission Core > --- PROPULSION ------- Cesium-ion Thruster Xenon Bombardment Thruster Xenon Bombardment Thruster Nuclear Pulse Thruster > --- UTILITY ---------- Experimental Terrain Scanner Expert System Improved Actuator Array Phase Shifter A0-MCA's Component Scanner > --- WEAPON ----------- Power Sword Power Sword > --- INVENTORY -------- Power Sword [Rating: 66] Favorites ----------- Power Light Deuterium Engine Engine Light Deuterium Engine Power Core Light Fission Core Propulsion Xenon Bombardment Thruster Flight Unit Xenon Bombardment Thruster Utility Structural Scanner Device Structural Scanner Processor A0-MCA's Component Scanner Hackware Hacking Suite Weapon Power Sword Energy Gun EM Pulse Gun Launcher Grenade Launcher Impact Weapon Heavy Mace Slashing Weapon Power Sword Build | -11 -10 -10 -8 -8 -6 ------- Run | Yrd Mat Sub Rec Scr Fac Slots Evolved 8 | . 1 . 4 1 2 Power . | . . . . . . Propulsion 3 | . 1 . 2 . . Utility 4 | . . . 2 . 2 Weapon 1 | . . . . 1 . Parts Attached 33 | 1 9 . 10 6 7 Power 6 | . 3 . 1 . 2 Engine 4 | . 3 . 1 . . Core 2 | . . . . . 2 Reactor . | . . . . . . Propulsion 9 | . 4 . 2 2 1 Treads . | . . . . . . Leg . | . . . . . . Wheel . | . . . . . . Hover . | . . . . . . Flight 9 | . 4 . 2 2 1 Utility 9 | . 1 . 3 3 2 Device 4 | . 1 . . 1 2 Storage . | . . . . . . Processor 3 | . . . 1 2 . Hackware 2 | . . . 2 . . Protection . | . . . . . . Artifact . | . . . . . . Weapon 9 | 1 1 . 4 1 2 Energy Gun 2 | 1 . . 1 . . Energy Cannon . | . . . . . . Ballistic Gun . | . . . . . . Ballistic Cannon . | . . . . . . Launcher 1 | . 1 . . . . Special Weapon . | . . . . . . Impact Weapon 2 | . . . 1 1 . Slashing Weapon 4 | . . . 2 . 2 Piercing Weapon . | . . . . . . Special Melee Weapon . | . . . . . . Unidentified Prototypes . | . . . . . . Parts Lost 2 | . . 1 . . 1 Power . | . . . . . . Propulsion 1 | . . . . . 1 Utility . | . . . . . . Weapon 1 | . . 1 . . . Highest Loss Streak 1 | . . 1 . . 1 To Critical Strikes . | . . . . . . Average Backups . | . . . . . . Power . | . . . . . . Propulsion . | . . . . . . Utility . | . . . . . . Weapon . | . . . . . . Tool/Special . | . . . . . . Unused Backups 1 | . . . . . 1 Power . | . . . . . . Propulsion . | . . . . . . Utility . | . . . . . . Weapon 1 | . . . . . 1 Tool/Special . | . . . . . . Average Slot Usage (%) 94 | . 80 100 89 99 100 Engine 10 | . 14 20 12 10 2 Core 1 | . . . . . 5 Flight 36 | . 30 40 37 40 34 Device 17 | . 14 20 12 18 20 Processor 7 | . . . 9 6 17 Hackware 2 | . . . 8 5 . Launcher 5 | . 19 20 . . . Impact Weapon 3 | . . . 1 9 . Slashing Weapon 8 | . . . 7 10 16 Peak Build Rating 66 | 1 5 5 20 43 66 Average Rating 27 | . 4 4 14 33 60 On Entrance 12 | . 1 5 4 20 43 Avg Prop Armor Cover (%) . | . . . . . . Naked Turns . | . . . . . . Heaviest Build 21 | 2 7 7 9 18 21 Greatest Support 26 | 3 8 8 17 21 26 Greatest Overweight (x) 1 | . . . . 1 . Average Overweight (x) . | . . . . . . Largest Inventory Capacity 1 | . . . . 1 1 Average Capacity . | . . . . . 1 Most Carried 1 | . . . . 1 1 Average Carried . | . . . . . . Final Capacity 1 | . . . . 1 1 Final Carried 1 | . . . . 1 1 Class Distribution -------------------- 67% | Hacker-Sprinter 30% | Hacker-Mutant Dominant Class ---------------- Hacker-Mutant | -10/Materials Hacker-Mutant | -10/Subcaves Hacker-Sprinter | -8/Recycling Hacker-Sprinter | -8/Scraptown Hacker-Sprinter | -6/Factory Resources | -11 -10 -10 -8 -8 -6 ----------- Run | Yrd Mat Sub Rec Scr Fac Matter Collected 930 | 200 147 292 146 70 75 Remotely . | . . . . . . Salvage Created 1650 | . 181 61 517 . 891 Parts 94 | . 29 4 17 . 44 Haulers Intercepted 4 | . . . 2 . 2 Recyclers Shooed . | . . . . . . Parts Field Recycled . | . . . . . . Retrieved Matter . | . . . . . . Parts Self-Destructed 5 | . . 5 . . . Prevented . | . . . . . . Parts Restored . | . . . . . . Kills | -11 -10 -10 -8 -8 -6 ------- Run | Yrd Mat Sub Rec Scr Fac Combat Hostiles Destroyed 33 | . 10 4 8 . 11 Melee 17 | . . . 6 . 11 AOE 14 | . 10 4 . . . Classes Destroyed 15 | . 5 2 7 . 1 Worker 1 | . 1 . . . . Builder 2 | . 2 . . . . Hauler 4 | . . . 2 . 2 Recycler 1 | . . . 1 . . Watcher 6 | . 2 . . . 4 Swarmer 12 | . 8 . . . 4 Grunt 5 | . 2 . 2 . 1 Duelist 1 | . . . 1 . . Protector 1 | . . . 1 . . Sentry 4 | . . . 2 . 2 Demolisher 1 | . . . 1 . . Hunter 3 | . . . 1 . 2 Programmer 2 | . . . . . 2 Artisan 1 | . . 1 . . . Subdweller 4 | . . 4 . . . Best Kill Streak 7 | . 7 4 4 . 3 Combat Bots Only 5 | . 5 4 3 . 2 Max Kills in Single Turn 3 | . 3 1 1 . 1 Gunslinging . | . . . . . . Exploded 3 | . 3 1 . . . Melee 1 | . . . 1 . 1 Uniques/NPCs Destroyed . | . . . . . . Combat | -11 -10 -10 -8 -8 -6 -------- Run | Yrd Mat Sub Rec Scr Fac Hostile Shots Fired 259 | . 23 58 5 34 139 Missed 128 | . 8 34 3 21 62 Hits 131 | . 15 24 2 13 77 Projectile 131 | . 15 24 2 13 77 Critical Strikes 1 | . . . . . 1 Damage Taken 1660 | . 165 383 30 201 881 Core 1389 | . 142 310 24 176 737 Absorbed by Shields . | . . . . . . Redirected to Core 915 | . 63 257 24 88 483 Core Remaining (%) 96 | 100 . . . 93 . Volleys Fired 38 | . 16 22 . . . Largest 1 | . 1 1 . . . Hottest 30 | . 30 30 . . . Shots Fired 38 | . 16 22 . . . Gun . | . . . . . . Cannon . | . . . . . . Launcher 38 | . 16 22 . . . Special . | . . . . . . Kinetic . | . . . . . . Thermal . | . . . . . . Explosive 38 | . 16 22 . . . Electromagnetic . | . . . . . . Robot Hit Streak 9 | . 4 9 . . . Robot Miss Streak 1 | . 1 . . . . Penetration Max . | . . . . . . Secondary Targets . | . . . . . . Shots Hit Robots 79 | . 4 5 25 . 45 Core Hits 58 | . 22 9 10 . 17 Critical Kills . | . . . . . . Critical Parts Destroyed 2 | . . . 2 . . Critical Strikes 7 | . . . 3 . 4 Smash 2 | . . . 2 . . Sever 5 | . . . 1 . 4 Melee Attacks 106 | . . . 26 14 66 Impact 18 | . . . 7 11 . Slashing 88 | . . . 19 3 66 Piercing . | . . . . . . Sneak Attacks 19 | . . . 14 . 5 Combat Hostiles 1 | . . . . . 1 Follow-up Attacks 7 | . . . . . 7 Damage Inflicted 5275 | . 699 730 1686 . 2160 Guns . | . . . . . . Cannons . | . . . . . . Explosions 1429 | . 699 730 . . . Melee 3846 | . . . 1686 . 2160 Ramming . | . . . . . . Kinetic . | . . . . . . Thermal . | . . . . . . Explosive 1429 | . 699 730 . . . Electromagnetic . | . . . . . . Impact 423 | . . . 423 . . Slashing 3423 | . . . 1263 . 2160 Piercing . | . . . . . . Highest Corruption 2 | . . . . 1 2 Average Corruption 1 | . . . . 1 1 Corruption Purged . | . . . . . . Corruption Blocked . | . . . . . . Effects 5 | . . . . 2 3 Message Errors 1 | . . . . . 1 Matter Fused 2 | . . . . . 2 Energy Discharges 2 | . . . . 2 . Overload Shots . | . . . . . . Overflow Damage 609 | . 9 . 443 . 157 Projectiles . | . . . . . . Explosions 9 | . 9 . . . . Melee 600 | . . . 443 . 157 Knockbacks 3 | . . . 3 . . Impact 3 | . . . 3 . . Kinetic . | . . . . . . Secondary . | . . . . . . Self-Inflicted Damage 42 | . 42 . . . . Shots 2 | . 2 . . . . Rammed . | . . . . . . Targets Rammed . | . . . . . . Kicked . | . . . . . . Crushed . | . . . . . . Highest Temperature 260 | . 5 . 6 260 12 Average Temperature 90 | . 5 . 1 101 5 Received Heat Transfer 330 | . 24 129 18 54 105 Siege Activations . | . . . . . . Martial Activations . | . . . . . . Shielding Activations . | . . . . . . Robots Disrupted . | . . . . . . Combat Hostiles . | . . . . . . Robots Corrupted 4 | . . . 4 . . Combat Hostiles 1 | . . . 1 . . Parts Fried 11 | . . . 11 . . Impact Corruptions 9 | . . . 9 . . Robots Melted . | . . . . . . Combat Hostiles . | . . . . . . Parts Melted . | . . . . . . Heat Transferred . | . . . . . . Parts Sabotaged . | . . . . . . Parts Stolen . | . . . . . . Parts Stripped . | . . . . . . Power Chain Reactions . | . . . . . . Alert | -11 -10 -10 -8 -8 -6 ------- Run | Yrd Mat Sub Rec Scr Fac Maximum Alert Level 2 | . 1 . . . 2 Low Security (%) 72 | 100 57 . 100 . 63 Level 1 21 | . 42 . . . 22 Level 2 5 | . . . . . 14 Level 3 . | . . . . . . Level 4 . | . . . . . . Level 5 . | . . . . . . High Security . | . . . . . . Max Security . | . . . . . . Peak Influence 489 | . 279 . 177 . 489 Initial 45 | . . . 45 . . Average 145 | . 165 . 79 . 184 Influence Increases 1491 | . 354 135 292 . 710 Destroy 0b10 Robot/C 560 | . 200 . 140 . 220 Destroy 0b10 Robot/NC 110 | . 25 . 55 . 30 Destroy Leader 116 | . 34 . . . 82 Successful Hack 148 | . 23 . 67 . 58 Select Force Hacks 30 | . . . 30 . . Anti-Garrison Action 150 | . . . . . 150 Destroy Structure 77 | . 72 . . . 5 Partial Spotted 30 | . . . . . 30 Lose Combat Pursuer 270 | . . 135 . . 135 Influence Decreases 1020 | . 183 211 230 157 239 Entered New Map 290 | . . 83 50 157 . Time Decay 700 | . 183 108 180 . 229 Lost Part 20 | . . 10 . . 10 Lost Ally 10 | . . 10 . . . Squads Dispatched 7 | . 1 . . . 6 Investigation 2 | . . . . . 2 Extermination 1 | . . . . . 1 Reinforcement 1 | . 1 . . . . Assault 2 | . . . . . 2 Garrison 1 | . . . . . 1 Intercept . | . . . . . . Searches Triggered . | . . . . . . Construction Impeded . | . . . . . . Haulers Reinforced . | . . . . . . Active Scanning Responses . | . . . . . . Cargo Convoy Interrupts . | . . . . . . Stealth | -11 -10 -10 -8 -8 -6 --------- Run | Yrd Mat Sub Rec Scr Fac Distress Signals 1 | . 1 . . . . Communications Jammed . | . . . . . . Distress Signals . | . . . . . . Times Spotted 78 | . 14 13 1 22 28 Peak Tracking Total 12 | . 8 7 1 12 8 Tactical Retreats 9 | . . 2 . 2 5 Traps | -11 -10 -10 -8 -8 -6 ------- Run | Yrd Mat Sub Rec Scr Fac Traps Triggered 2 | . 1 . . . 1 Indirectly . | . . . . . . Trap Hack Attempts . | . . . . . . Triggered . | . . . . . . Disarmed . | . . . . . . Reprogrammed . | . . . . . . Reused . | . . . . . . Traps Extracted . | . . . . . . Installed . | . . . . . . Triggered . | . . . . . . Machines | -11 -10 -10 -8 -8 -6 ---------- Run | Yrd Mat Sub Rec Scr Fac Machines Disabled 4 | . 1 1 . 1 1 Max in Single Turn 1 | . 1 1 . 1 1 Garrison Access 3 | . . . . . 3 Machines Repaired . | . . . . . . Machines Dismantled . | . . . . . . Machines Sabotaged . | . . . . . . Overloaded Fab Kills . | . . . . . . Hacking | -11 -10 -10 -8 -8 -6 --------- Run | Yrd Mat Sub Rec Scr Fac Machines Accessed 36 | . 6 . 7 8 15 Terminals 20 | . 6 . 6 . 8 Fabricators 1 | . . . . . 1 Repair Stations . | . . . . . . Recycling Units 2 | . . . 1 . 1 Scanalyzers 2 | . . . . . 2 Garrison Access 3 | . . . . . 3 Total Hacks 194 | . 41 . 61 51 41 Successful 128 | . 25 . 36 51 16 Failed 65 | . 16 . 24 . 25 Catastrophic 5 | . . . . . 5 Database Lockouts 1 | . . . 1 . . Manual 94 | . 33 . 41 . 20 Terminals 120 | . 41 . 58 . 21 Fabricators 3 | . . . . . 3 Repair Stations . | . . . . . . Recycling Units 4 | . . . 3 . 1 Scanalyzers 11 | . . . . . 11 Garrison Access 5 | . . . . . 5 Terminal Hacks 87 | . 13 . 22 51 1 Record 50 | . . . . 50 . Robot Analysis 2 | . . . 2 . . Prototype ID Bank 13 | . 3 . 10 . . Open Door 1 | . . . . . 1 Branch Access Points 3 | . 2 . 1 . . Terminal Index 2 | . 1 . 1 . . Alert Level 3 | . 1 . 2 . . Dispatch Records 1 | . 1 . . . . Maintenance Status 1 | . 1 . . . . Hauler Manifests 2 | . 1 . 1 . . Registered Components 2 | . 1 . 1 . . Registered Prototypes 1 | . . . 1 . . Zone Layout 5 | . 2 . 3 . . Proto ID Catalog 1 | . . . . 1 . Fabricator Hacks 1 | . . . . . 1 Network Status 1 | . . . . . 1 Repair Station Hacks . | . . . . . . Recycling Unit Hacks . | . . . . . . Scanalyzer 4 | . . . . . 4 Retrieve Study 4 | . . . . . 4 Garrison Access Hacks 2 | . . . . . 2 Seal Access 2 | . . . . . 2 Unauthorized Hacks 34 | . 12 . 14 . 8 Terminals 30 | . 12 . 13 . 5 Track 5 | . 2 . 3 . . Assimilate 1 | . 1 . . . . Botnet 6 | . 3 . 3 . . Operators 3 | . 1 . 2 . . Skim 15 | . 5 . 5 . 5 Fabricators 1 | . . . . . 1 Haulers 1 | . . . . . 1 Repair Stations . | . . . . . . Recycling Units 2 | . . . 1 . 1 Tunnel 1 | . . . 1 . . Fedlink 1 | . . . . . 1 Scanalyzers . | . . . . . . Garrison Access 1 | . . . . . 1 Watchers 1 | . . . . . 1 Data Cores Recovered . | . . . . . . Used . | . . . . . . Hacking Detections 26 | . 6 . 7 . 13 Full Trace Events 1 | . . . . . 1 Feedback Events . | . . . . . . Feedback Blocked . | . . . . . . Robot Schematics Acquired . | . . . . . . Robots Built . | . . . . . . Authchips . | . . . . . . Time . | . . . . . . Total Robot Build Rating . | . . . . . . Part Schematics Acquired . | . . . . . . Parts Built . | . . . . . . Authchips . | . . . . . . Time . | . . . . . . Total Part Build Rating . | . . . . . . Part Studies Acquired 4 | . . . . . 4 Parts Repaired . | . . . . . . Time . | . . . . . . Parts Recycled . | . . . . . . Recycled Matter . | . . . . . . Retrieved Matter . | . . . . . . Retrieved Components . | . . . . . . Parts Scanalyzed . | . . . . . . Part Schematics Acquired . | . . . . . . Parts Damaged . | . . . . . . Bothacking | -11 -10 -10 -8 -8 -6 ------------ Run | Yrd Mat Sub Rec Scr Fac Used RIF Installer . | . . . . . . Robots Hacked . | . . . . . . Non-combat . | . . . . . . Combat . | . . . . . . Robot Hacks Applied . | . . . . . . Relay Couplers Released 1 | . . . . . 1 Machine Destruction 1 | . . . . . 1 Fabnet Peak Effective % . | . . . . . . Robots Rewired . | . . . . . . Allies Hacked . | . . . . . . Hacks Repelled . | . . . . . . Allies | -11 -10 -10 -8 -8 -6 -------- Run | Yrd Mat Sub Rec Scr Fac Total Allies 1 | . 1 . . . . Largest Group 1 | . 1 1 . . . Highest-Rated Group 10 | . 10 10 . . . Highest-Rated Ally 10 | . 10 10 . . . Initial UFD Resources 23 | . . . . . 23 Total Orders . | . . . . . . Ally Attacks . | . . . . . . Total Damage . | . . . . . . Kills . | . . . . . . Allies Corrupted . | . . . . . . Allies Melted 7 | . . . . 7 . Intel | -11 -10 -10 -8 -8 -6 ------- Run | Yrd Mat Sub Rec Scr Fac Active Infowar (turns) 2187 | . 312 279 370 673 553 Terrain 553 | . . . . . 553 Structural 1634 | . 312 279 370 673 . Robot Analysis Total 2 | . . . 2 . . Derelict Logs Recovered 2 | . . 2 . . . Drone Launches . | . . . . . . Drone Recoveries . | . . . . . . Exploration | -11 -10 -10 -8 -8 -6 ------------- Run | Yrd Mat Sub Rec Scr Fac Turns Passed 2379 | 33 414 279 370 727 556 Spaces Moved 5126 | 63 412 573 757 2253 1068 Core 205 | 63 142 . . . . Treads . | . . . . . . Legs . | . . . . . . Wheels . | . . . . . . Hover . | . . . . . . Flight 4921 | . 270 573 757 2253 1068 Fastest Speed 28 | 50 37 37 28 28 28 Average Speed 30 | 50 41 37 30 28 28 Slowest Speed 108 | 50 50 37 37 108 29 Overloaded Moves . | . . . . . . Propulsion Burnouts . | . . . . . . Robots Hopped 19 | . 6 . 9 4 . Potential Cave-ins . | . . . . . . Cave-ins Triggered 1 | . . . . 1 . Exploration Rate (%) 56 | 3 77 35 94 96 34 Regions Visited 5 Branch Regions 3 Pre-discovered Areas 1 | . . . 1 . . Known Exits Taken 3 | . 1 1 . 1 . Unknown Exits Taken 2 | 1 . . 1 . . Scrap Searched 11 | . . 4 . 7 . Spaces Dug 21 | . . 7 . 8 6 Terrain Destroyed 199 | . 86 99 . 8 6 Melee 14 | . . . . 8 6 Projectile . | . . . . . . AOE 185 | . 86 99 . . . Terrain Rammed . | . . . . . . Walls Destroyed . | . . . . . . Machines Disabled . | . . . . . . Actions | -11 -10 -10 -8 -8 -6 --------- Run | Yrd Mat Sub Rec Scr Fac Total 5704 | 63 630 617 832 2319 1243 Wait 375 | . 194 23 18 34 106 Move 5087 | 62 399 572 740 2246 1068 Hop 15 | . 6 . 7 2 . Pick Up 2 | . . . . 1 1 Fast Attach 16 | 1 6 . 5 3 1 Attach 1 | . . . . . 1 Detach . | . . . . . . Swap 18 | . 4 . 5 4 5 Drop 11 | . 4 . . 3 4 Fire 38 | . 16 22 . . . Melee 86 | . . . 26 11 49 Ram . | . . . . . . Kick . | . . . . . . Crush . | . . . . . . Escape Stasis . | . . . . . . Rewire . | . . . . . . Trap . | . . . . . . Miscellaneous 55 | . 1 . 31 15 8 Route ------- -11/Scrapyard -10/Materials (discovered 5 exits: *Mat x3 / *Min / *Sub) -10/Subcaves -8/Recycling (discovered 2 exits: *Fac / *Scr) -8/Scraptown (discovered 2 exits: *Fac x2) -6/Factory (discovered 3 exits: [*Fac x2] / [*Ext]) History --------- Turn | Location | Event 4 | -11/Scrapyard | Discovered new exit (range 15) 34 | -11/Scrapyard | Entered Materials 69 | -10/Materials | Discovered new exit (range 11) 69 | -10/Materials | Identified exit to Mines 117 | -10/Materials | Upgraded with Propulsion slot (x1) 246 | -10/Materials | Identified exit to Subcaves 246 | -10/Materials | Identified exit to Materials 300 | -10/Materials | Learned location of 1 exit from Materials 359 | -10/Materials | Build established: Hacker-Mutant 448 | -10/Materials | Entered Subcaves 448 | -10/Subcaves | Accompanied by 1 ally 449 | -10/Subcaves | Identified exit to Recycling 449 | -10/Subcaves | Learned Materials security intel 450 | -10/Subcaves | Reached level 2 548 | -10/Subcaves | Core integrity fell below 50% 626 | -10/Subcaves | Shifting Twisted Machinery released Battle Rifle 627 | -10/Subcaves | Shifting Twisted Machinery released Battle Cannon 644 | -10/Subcaves | Ambushed by Subdweller buried in earth 703 | -10/Subcaves | Ambushed by angry Subdweller bent on revenge 712 | -10/Subcaves | Learned Materials security intel 727 | -10/Subcaves | Entered Recycling 728 | -8/Recycling | Joined Warlord attack on 0b10 via Recycling 729 | -8/Recycling | Reached level 3 756 | -8/Recycling | Upgraded with Propulsion slot (x2) 782 | -8/Recycling | Upgraded with Utility slot (x1) 810 | -8/Recycling | Upgraded with Utility slot (x1) 837 | -8/Recycling | Discovered new exit (range 15) 844 | -8/Recycling | Scanned before Scraplab entrance 1064 | -8/Recycling | Build established: Hacker-Sprinter 1093 | -8/Recycling | Discovered new exit (range 11) 1094 | -8/Recycling | Entered Scraplab 1097 | -8/Recycling | Entered Scraptown 1099 | -8/Scraptown | Reached level 4 1120 | -8/Scraptown | Upgraded with Weapon slot (x1) 1231 | -8/Scraptown | Discovered new exit (range 7) 1245 | -8/Scraptown | Visited Bundlers 1271 | -8/Scraptown | Visited Cave Peace 1280 | -8/Scraptown | Visited Fellowship of the Rings 1285 | -8/Scraptown | Visited Junk Repository 1293 | -8/Scraptown | Visited UFD Registry 1336 | -8/Scraptown | Visited The Evicted 1388 | -8/Scraptown | Visited Assassins FH 1399 | -8/Scraptown | Visited Awakened 1445 | -8/Scraptown | Registered with UFD as "Nullmod" 1455 | -8/Scraptown | Visited A0-MCA Data Center 1457 | -8/Scraptown | Given a C rating by A0-MCA 1460 | -8/Scraptown | Found A0-MCA's Component Scanner 1489 | -8/Scraptown | Visited Infowarlord's Domain 1497 | -8/Scraptown | Visited Junk Repository 1505 | -8/Scraptown | Visited LU-1G1's Boring Crew 1515 | -8/Scraptown | Visited Research Penetration Think Tank 1522 | -8/Scraptown | Visited Derelict Rescue Squad 1532 | -8/Scraptown | Visited Science Guys 1555 | -8/Scraptown | Visited Scrap Suit Storage 1566 | -8/Scraptown | Visited Chapter 10 1582 | -8/Scraptown | Visited Abandonware Association 1587 | -8/Scraptown | Learned abandonware demo "REPAIR.EXE" 1615 | -8/Scraptown | Met Optimus 1615 | -8/Scraptown | Accepted into 0bPrime 1649 | -8/Scraptown | Civil war broke out across Scraptown 1718 | -8/Scraptown | Lost 3 allies 1723 | -8/Scraptown | Identified exit to Factory 1738 | -8/Scraptown | Crushed by falling debris 1770 | -8/Scraptown | Found Expert System 1778 | -8/Scraptown | Lost 7 allies 1779 | -8/Scraptown | Found Exp. Terrain Scanner 1824 | -8/Scraptown | Entered Factory 1826 | -6/Factory | Reached level 5 1827 | -6/Factory | Upgraded with Utility slot (x1) 1890 | -6/Factory | Discovered new exit (range 6) 2060 | -6/Factory | Discovered new exit (range 24) 2108 | -6/Factory | Discovered new exit (range 4) 2133 | -6/Factory | Garrison activated, responded to threat 2141 | -6/Factory | Core integrity fell below 50% 2142 | -6/Factory | Reached level 6 2153 | -6/Factory | Upgraded with Utility slot (x1) 2320 | -6/Factory | Core integrity fell below 20% 2320 | -6/Factory | Reached level 7 2338 | -6/Factory | Loaded intel: 8 recycling unit locations 2380 | -6/Factory | Destroyed by Y-54 Guardian with Gatling Laser Last Messages --------------- into recycling unit. 02341_ Recycling unit begins recycling process. 02343_ R-10 Processor inserts Targeting Computer into recycling unit. 02347_ Upgraded: Melee Accuracy (+10) 02358_ Sneak attack on G-50 Soldier. 02358_ G-50 Soldier destroyed. 02366_ Power Sword+ follow-up attack on G-50 Soldier. 02367_ System corrupted: Matter fused (-10). 02368_ R-10 Processor collects Lgt. Angular Momentum Engine. 02371_ G-50 Soldier Hvy. Laser severed. 02375_ Power Sword+ follow-up attack on Y-54 Guardian. 02375_ Destroyed Imp. Deuterium Engine. 02377_ R-10 Processor collects Hvy. Laser. 02378_ Power Sword+ follow-up attack on Y-54 Guardian. 02380_ Xenon Bombardment Thruster+ destroyed. Map ----- +----------------------------------------------------+ | | | | | | | | | | | | | | | | | | | | | ?##?##?#?????#?#?#??###?#?????##?????##???#???#??# | | ?? ? ???? #??#?#?#??#???##?#?#???##?#?????####?# | | ? ? ? ??????#?#??#?#??#?#???#??#?#????#?##????##?? | | ??????? ??????#??###?#?#??#########?###??#?##?##?? | | ??"?""??? ############### #??##??#???##??# | | ? ""??""??# """ ^ ##???#??#??#???# | | ?? """?????# "Y" #???#??#??###?#? | | ?? ?????"?"?# #?#??###?##?#?## | | ? ? ? ? ? # ! #??##??########? | | ??#+##?###### #?#####?#?#?#### | | ? ###?## #??##?##?#?###?# | | ###### #??##????##??#?? | | #??### ? ? ? | | #?##?#? ? ?? ? | | ##### YR% #??#??? ?? ? | | #######+##########@ R #?####? ??? | | ? ?# *####+##### ####???? ?? | | ?# #?#"" #??# ### ######? ? ? | | ## #?#"" ! """""" #?## #?# ##?##? ???? ? | | ?# #?#"T """""" # ?# ### #####? ? ? ? | | ## ###"" """"""?#??# ### #?#?#? | | ## #?#"" """"""????# ### ##?### ? | | ## #?# #??# ### ##?##? ? ? | | ## #?##+###############?#! #?# ####?# ? ? | | ?# #### ##?## ?#####?# #?##########+### | | ## #### ##### """ """ ##????? #?###?#### | | ## #### ###?# """ """ #?#??#? ########## | | ## ##### """ """??#?#?#?? ########## | | # ##??## ##?#?#??# | | " # """ """? ##???#?< ??? | | "T + """ ""? ######? #####?######### | | # """ ""? #?###?#+###### ? | | # # ? ? #####?""""""" | | ######## """ """ # ?"? #####?""?"""" | | ########?######! """ """ # "?" ?###?# """"""" | | #???#?####?#?## """ """ # "?" ?? ##### """"""" | | ?#???##??#????# ?# ? ? ##### | | ?#?##??#??#############?### ?"? ##### ! | | # ?? ?? ##?###?#?#?#??#### """? #?#?########### | | #?? "?? ?#####??#####??##?#?"?? ? #? ? | +----------------------------------------------------+ Best States ------------- Heat Dissipation 31 Energy Generation 23 Energy Capacity 160 Matter Stores 300 Matter Capacity 300 Sight Range 16 Terrain Scan Range 30 Terrain Scan Density 110 Phase Shifting 5 Evasion (%) 69 Melee Accuracy 5 Offensive Hacking 20 Defensive Hacking 15 Item Schematics ----------------- None Robot Schematics ------------------ None Fabricated ------------ Nothing Repaired ---------- Nothing Studied --------- Power Sword | -6/Factory | Hacked Xenon Bombardment Thruster | -6/Factory | Hacked Lgt. Nuclear Core | -6/Factory | Hacked Cesium-ion Thruster | -6/Factory | Hacked Alien Tech Used ----------------- None Achievements -------------- Civilization 2243 Do Not Disturb Link The Feds Uncivil War Wiki Contributor Challenges ------------ None RPGLIKE | -11 -10 -10 -8 -8 -6 --------- Run | Yrd Mat Sub Rec Scr Fac Levels Raised 6 | . . 1 1 1 3 XP Earned 12217 | 3000 1185 1000 2130 900 4002 XP Spent 11450 | . 2600 . 3400 1100 4350 Upgrades 22 | . 6 . 5 4 7 Propulsion Slot 3 | . 1 . 2 . . Utility Slot 4 | . . . 2 . 2 Weapon Slot 1 | . . . . 1 . Heat Dissipation 1 | . . . . 1 . Energy Generation 1 | . . . . 1 . Inventory Capacity 1 | . . . . 1 . Terrain Scan Density 1 | . . . . . 1 Melee Accuracy 5 | . . . 1 . 4 Hack Attack % 2 | . 2 . . . . Hack Defense % 3 | . 3 . . . . Protomatter Created 438 | . 4 14 362 . 58 Integrity Restored 1105 | . 12 . 627 292 174 Core 785 | . 12 . 464 135 174 Parts 320 | . . . 163 157 . Protomatter Decayed 4733 | . . 68 207 4458 . Game ------ Seed AssaultMiniBuckler Manual? 0 Play Time 01:11:16 Cumulative 198.5 hours Start 2026.02.22 @ 10:44:37 End 2026.02.22 @ 13:22:34 Sessions 1 Manual Loads 0 Difficulty Rogue Special Mode Winter2019/RPGLIKE Game No. 201 Rogue 201 Adventurer 0 Explorer 0 Win Type - Total 14 Types 11/0/1/1/0/0/1/0/0/0 Lore% 55 Gallery% 57 Achievement% 49 Wizard Run 0 Options --------- Layout 2 ASCII 0 Keyboard 0 Movement Numpad Keybinds 0 Fullscreen 1 Font 24/Smallcaps Map View 50x44 Zoom Use 0% Tactical HUD 1 Map Filters NONE Filters NONE Steam 1 RUN: f0434dde-760a-4154-abbf-eba6ce598507